bitfinex-derivatives/quotes_BTCF0:USTF0_20250609
["timestamp","ask_amount","ask_price","bid_price","bid_amount"]
[1749438184130,1.81151908,105600.0,105590.0,0.27315943]
[1749438184328,1.81151908,105600.0,105590.0,0.28748253]
[1749438184528,1.81151908,105600.0,105590.0,0.27315943]
[1749438184924,1.81151908,105600.0,105590.0,0.28748253]
[1749438185120,1.81151908,105600.0,105590.0,0.19884121]
[1749438185927,1.92888888,105600.0,105590.0,0.28752922]
[1749438186127,1.92888888,105600.0,105590.0,0.15497081]
[1749438186329,2.02359288,105600.0,105590.0,0.16930147]
[1749438187223,2.02359288,105600.0,105590.0,0.16929153]
[1749438188427,2.02359288,105600.0,105590.0,0.08061072]
[1749438189330,2.02359288,105600.0,105590.0,0.08060692]
[1749438190025,2.02359288,105600.0,105590.0,0.07968401]
[1749438190230,2.02359288,105600.0,105590.0,0.09399878]
[1749438190430,2.02359288,105600.0,105590.0,0.09405987]
[1749438190633,2.02359288,105600.0,105590.0,0.07968082]
[1749438190833,2.02359288,105600.0,105590.0,0.09405771]
[1749438191128,2.02359288,105600.0,105590.0,0.08066901]
[1749438191328,2.02359288,105600.0,105590.0,0.08066892]
[1749438191524,2.02359288,105600.0,105590.0,0.09404693]
[1749438191727,2.02359288,105600.0,105590.0,0.06629]
[1749438191933,2.02359288,105600.0,105590.0,0.08066896]
[1749438192133,2.02359288,105600.0,105590.0,0.09405086]
[1749438192434,2.02359288,105600.0,105590.0,0.09405148]
[1749438192926,2.02359288,105600.0,105590.0,0.08067183]
[1749438193126,2.02359288,105600.0,105590.0,0.07974619]
[1749438193322,2.02359288,105600.0,105590.0,0.08067202]
[1749438193522,2.02359288,105600.0,105590.0,0.09412221]
[1749438193726,1.92888888,105600.0,105590.0,0.09412221]
[1749438194735,1.92888888,105600.0,105590.0,0.0797434]
[1749438194932,1.92888888,105600.0,105590.0,0.07974332]
[1749438195233,1.92888888,105600.0,105590.0,0.06629]
[1749438195434,1.92888888,105600.0,105590.0,0.07974358]
[1749438195634,1.92888888,105600.0,105590.0,0.08070116]
[1749438195830,0.1893196,105590.0,105580.0,0.08882241]
[1749438196135,0.8796592,105590.0,105580.0,0.10228126]
[1749438196331,0.8796592,105590.0,105580.0,0.08882241]
[1749438196332,0.7622894,105590.0,105580.0,0.08882241]
[1749438197236,0.7622894,105590.0,105580.0,0.10228064]
[1749438197532,0.7622894,105590.0,105580.0,0.08882241]
[1749438197730,0.7993999,105590.0,105580.0,0.08882241]
[1749438198135,0.4395999,105590.0,105580.0,0.10228761]
[1749438198335,1.1611999,105590.0,105580.0,0.10228729]
[1749438198535,1.1611999,105590.0,105580.0,0.08982241]
[1749438198932,1.1611999,105590.0,105580.0,0.08882241]
[1749438199237,1.1611999,105590.0,105580.0,0.10229458]
[1749438199433,1.1611999,105590.0,105580.0,0.10229459]
[1749438200034,1.1611999,105590.0,105580.0,0.10229457]
[1749438200235,1.1611999,105590.0,105580.0,0.10229261]
[1749438200439,1.1611999,105590.0,105580.0,0.10228513]
[1749438200641,1.1611999,105590.0,105580.0,0.08882241]
[1749438200840,1.1652565,105590.0,105580.0,0.10228231]
[1749438201143,1.1652565,105590.0,105580.0,0.10228226]
[1749438201144,1.0478867,105590.0,105580.0,0.10228226]
[1749438201342,1.1652565,105590.0,105580.0,0.10229431]
[1749438201542,1.1652565,105590.0,105580.0,0.08882241]
[1749438201841,1.1652565,105590.0,105580.0,0.10229443]
[1749438202245,1.1652565,105590.0,105580.0,0.10228198]
[1749438202446,1.1652565,105590.0,105580.0,0.08882241]
[1749438203345,1.1652565,105590.0,105580.0,0.10228319]
[1749438203541,1.1652565,105590.0,105580.0,0.10228316]
[1749438203945,1.1652565,105590.0,105580.0,0.10228305]
[1749438204145,1.1652565,105590.0,105580.0,0.10228304]
[1749438204649,1.1652565,105590.0,105580.0,0.08882241]
[1749438204844,1.18292228,105590.0,105580.0,0.08882241]
[1749438205044,1.30029208,105590.0,105580.0,0.08882241]
[1749438205543,1.18292228,105590.0,105580.0,0.10230696]
[1749438205748,1.30029208,105590.0,105580.0,0.0001416]
[1749438206742,1.30029208,105590.0,105580.0,0.01373521]
[1749438206942,1.30029208,105590.0,105580.0,0.01373844]
[1749438207141,1.30029208,105590.0,105580.0,0.0001416]
[1749438207845,1.30029208,105590.0,105580.0,0.02802327]
[1749438208147,1.30029208,105590.0,105580.0,0.02800405]
[1749438208347,1.30029208,105590.0,105580.0,0.0001416]
[1749438208547,1.30029208,105590.0,105580.0,0.01374505]
[1749438208848,1.30029208,105590.0,105580.0,0.01374619]
[1749438209047,1.30029208,105590.0,105580.0,0.02802264]
[1749438209251,1.30029208,105590.0,105580.0,0.0280228]
[1749438209451,1.30029208,105590.0,105580.0,0.01374833]
[1749438209651,1.30029208,105590.0,105580.0,0.02802193]
[1749438209954,1.30029208,105590.0,105580.0,0.02804733]
[1749438210256,1.30029208,105590.0,105580.0,0.01374453]
[1749438210448,1.30029208,105590.0,105580.0,0.01372664]
[1749438210645,1.30029208,105590.0,105580.0,0.01445076]
[1749438210841,1.30029208,105590.0,105580.0,0.0137204]
[1749438211045,1.30029208,105590.0,105580.0,0.02802956]
[1749438211350,1.30029208,105590.0,105580.0,0.0001416]
[1749438211651,1.30029208,105590.0,105580.0,0.01445081]
[1749438211853,1.30029208,105590.0,105580.0,0.02804957]
[1749438212151,1.30029208,105590.0,105580.0,0.01374034]
[1749438212349,1.30029208,105590.0,105580.0,0.0001416]
[1749438212549,1.30029208,105590.0,105580.0,0.01374035]
[1749438212748,1.30029208,105590.0,105580.0,0.0001416]
[1749438212942,1.30029208,105590.0,105580.0,0.01376179]
[1749438213149,1.30029208,105590.0,105580.0,0.01445953]
[1749438213349,1.30029208,105590.0,105580.0,0.0137619]
[1749438213557,1.30029208,105590.0,105580.0,0.02807975]
[1749438213758,1.30029208,105590.0,105580.0,0.02807972]
[1749438214057,1.30029208,105590.0,105580.0,0.02807981]
[1749438214257,1.30029208,105590.0,105580.0,0.02807982]
[1749438214658,1.30029208,105590.0,105580.0,0.01445962]
[1749438215157,1.30029208,105590.0,105580.0,0.0001416]
[1749438215346,1.30029208,105590.0,105580.0,0.02809417]
[1749438215548,1.30029208,105590.0,105580.0,0.01376179]
[1749438215755,1.30029208,105590.0,105580.0,0.01447471]
[1749438215947,1.30029208,105590.0,105580.0,0.0280949]
[1749438216148,1.30029208,105590.0,105580.0,0.02809498]
[1749438216349,1.30029208,105590.0,105580.0,0.01376187]
[1749438216550,1.30029208,105590.0,105580.0,0.0281113]
[1749438216746,1.73153208,105590.0,105580.0,0.0281113]
[1749438216953,1.73153208,105590.0,105580.0,0.0281172]
[1749438217151,0.1893375,105580.0,105570.0,0.18238081]
[1749438217355,0.9216276,105580.0,105570.0,0.1967123]
[1749438217655,0.9216276,105580.0,105570.0,0.21036192]
[1749438217961,0.9216276,105580.0,105570.0,0.19602695]
[1749438218158,0.9216276,105580.0,105570.0,0.19602696]
[1749438218355,0.9216276,105580.0,105570.0,0.21035844]
[1749438218559,0.9216276,105580.0,105570.0,0.21135846]
[1749438218859,0.9216276,105580.0,105570.0,0.19702697]
[1749438219055,0.9216276,105580.0,105570.0,0.21135599]
[1749438219250,0.9216276,105580.0,105570.0,0.18338081]
[1749438219652,0.9216276,105580.0,105570.0,0.19702573]
[1749438219859,0.9216276,105580.0,105570.0,0.21135596]
[1749438220161,1.3528276,105580.0,105570.0,0.21135695]
[1749438220365,1.3538276,105580.0,105570.0,0.21137294]
[1749438220664,1.3538276,105580.0,105570.0,0.1967267]
[1749438220865,1.3538276,105580.0,105570.0,0.19604601]
[1749438221159,1.3538276,105580.0,105570.0,0.21039324]
[1749438221360,1.3538676,105580.0,105570.0,0.21039324]
[1749438221860,1.3538676,105580.0,105570.0,0.21039124]
[1749438222062,1.4712374,105580.0,105570.0,0.21038912]
[1749438222260,1.3538676,105580.0,105570.0,0.21038912]
[1749438222652,1.3538676,105580.0,105570.0,0.21038922]
[1749438222856,1.3538676,105580.0,105570.0,0.19605143]
[1749438223061,1.3538676,105580.0,105570.0,0.21039659]
[1749438223861,1.3538676,105580.0,105570.0,0.19673841]
[1749438224256,1.3538676,105580.0,105570.0,0.21045194]
[1749438224559,1.3538676,105580.0,105570.0,0.19607995]
[1749438224763,1.3538676,105580.0,105570.0,0.21045196]
[1749438224966,1.7834276,105580.0,105570.0,0.21045196]
[1749438225367,1.7834276,105580.0,105570.0,0.19607996]
[1749438225663,1.4226276,105580.0,105570.0,0.19675169]
[1749438225868,2.1442276,105580.0,105570.0,0.2104688]
[1749438226061,2.1442276,105580.0,105570.0,0.19609792]
[1749438226366,2.1442276,105580.0,105570.0,0.19675169]
[1749438226557,2.1442276,105580.0,105570.0,0.21046881]
[1749438227264,2.1442276,105580.0,105570.0,0.20015453]
[1749438227461,2.1442276,105580.0,105570.0,0.20080836]
[1749438227963,2.1442276,105580.0,105570.0,0.21454698]
[1749438228467,2.1442276,105580.0,105570.0,0.21049038]
[1749438228854,2.3591974,105580.0,105570.0,0.21049038]
[1749438229068,2.3591974,105580.0,105570.0,0.12181628]
[1749438229260,2.3591974,105580.0,105570.0,0.12181834]
[1749438229659,2.3591974,105580.0,105570.0,0.10806138]
[1749438229861,2.2418276,105580.0,105570.0,0.0937]
[1749438230061,2.2418276,105580.0,105570.0,0.10806138]
[1749438230260,2.2418276,105580.0,105570.0,0.21048955]
[1749438230662,2.2418276,105580.0,105570.0,0.19612817]
[1749438230863,2.2418276,105580.0,105570.0,0.21048991]
[1749438231078,2.2418276,105580.0,105570.0,0.2104899]
[1749438231365,2.2418276,105580.0,105570.0,0.20018476]
[1749438231565,2.2418276,105580.0,105570.0,0.21454651]
[1749438232662,2.2418276,105580.0,105570.0,0.20079913]
[1749438233268,2.2418276,105580.0,105570.0,0.21454647]
[1749438233569,2.2418276,105580.0,105570.0,0.214543]
[1749438234264,2.2418276,105580.0,105570.0,0.20079913]
[1749438234461,2.2418276,105580.0,105570.0,0.20079904]
[1749438235061,2.2418276,105580.0,105570.0,0.2001813]
[1749438235364,2.2418276,105580.0,105570.0,0.21454293]
[1749438235867,2.2418276,105580.0,105570.0,0.20079904]
[1749438236064,2.2418276,105580.0,105570.0,0.21454333]
[1749438236266,2.2418276,105580.0,105570.0,0.20018167]
[1749438236466,2.2085276,105580.0,105570.0,0.1967458]
[1749438236763,2.2085276,105580.0,105570.0,0.21050155]
[1749438236963,2.2085276,105580.0,105570.0,0.19613069]
[1749438237165,2.2085276,105580.0,105570.0,0.21050155]
[1749438237864,2.2085276,105580.0,105570.0,0.10807086]
[1749438238167,2.2085276,105580.0,105570.0,0.0937]
[1749438238667,2.2085276,105580.0,105570.0,0.12182414]
[1749438239061,2.2402276,105580.0,105570.0,0.12182414]
[1749438239369,2.2402276,105580.0,105570.0,0.12182413]
[1749438239570,2.2402276,105580.0,105570.0,0.12182441]
[1749438239869,2.2402276,105580.0,105570.0,0.1218247]
[1749438240370,2.2402276,105580.0,105570.0,0.10745286]
[1749438240563,2.2402276,105580.0,105570.0,0.12181872]
[1749438240762,2.2402276,105580.0,105570.0,0.10806587]
[1749438240959,2.2402276,105580.0,105570.0,0.10806329]
[1749438241262,2.2402276,105580.0,105570.0,0.0937]
[1749438241569,2.2402276,105580.0,105570.0,0.12181615]
[1749438241775,2.2402276,105580.0,105570.0,0.0937]
[1749438241970,2.2402276,105580.0,105570.0,0.12181621]
[1749438242270,2.2402276,105580.0,105570.0,0.0937]
[1749438242574,2.2402276,105580.0,105570.0,0.10745132]
[1749438242874,2.2402276,105580.0,105570.0,0.12181435]
[1749438243273,2.2402276,105580.0,105570.0,0.10745132]
[1749438243465,2.2402276,105580.0,105570.0,0.07776303]
[1749438243773,2.2402276,105580.0,105570.0,0.07715132]
[1749438243970,2.2402276,105580.0,105570.0,0.0634]
[1749438244174,2.2402276,105580.0,105570.0,0.07715132]
[1749438244368,2.2402276,105580.0,105570.0,0.16583221]
[1749438244566,2.2402276,105580.0,105570.0,0.18019515]
[1749438244763,2.2402276,105580.0,105570.0,0.16644375]
[1749438245273,2.2402276,105580.0,105570.0,0.16583221]
[1749438245466,2.2402276,105580.0,105570.0,0.15208081]
[1749438245662,2.2402276,105580.0,105570.0,0.18019379]
[1749438245867,2.2402276,105580.0,105570.0,0.16644255]
[1749438246170,2.2402276,105580.0,105570.0,0.18019394]
[1749438246474,1.5186276,105580.0,105570.0,0.16644175]
[1749438246772,2.2442842,105580.0,105570.0,0.16583221]
[1749438246974,2.2442842,105580.0,105570.0,0.13354175]
[1749438247166,2.2442842,105580.0,105570.0,0.14729772]
[1749438247466,2.2442842,105580.0,105570.0,0.11918081]
[1749438247667,2.2442842,105580.0,105570.0,0.13354178]
[1749438247869,1.5226842,105580.0,105570.0,0.1473004]
[1749438248069,2.2442842,105580.0,105570.0,0.13354178]
[1749438248459,2.2442842,105580.0,105570.0,0.14731426]
[1749438248663,2.2442842,105580.0,105570.0,0.13354178]
[1749438248871,2.2442842,105580.0,105570.0,0.11918081]
[1749438249072,2.2442842,105580.0,105570.0,0.13354178]
[1749438249371,2.2442842,105580.0,105570.0,0.14731426]
[1749438249564,2.2442842,105580.0,105570.0,0.11918081]
[1749438249761,2.2442842,105580.0,105570.0,0.14733106]
[1749438249965,2.2442842,105580.0,105570.0,0.13355858]
[1749438250161,2.2442842,105580.0,105570.0,0.1473309]
[1749438250367,2.361654,105580.0,105570.0,0.11683098]
[1749438250568,0.1893556,105570.0,105560.0,0.11902669]
[1749438250874,0.7675359,105570.0,105560.0,0.14727533]
[1749438251075,0.7675359,105570.0,105560.0,0.16380712]
[1749438251273,0.7675359,105570.0,105560.0,0.16329526]
[1749438251473,0.7675359,105570.0,105560.0,0.16380712]
[1749438251675,0.7675359,105570.0,105560.0,0.15042669]
[1749438252069,0.7675359,105570.0,105560.0,0.16481024]
[1749438252374,0.7675359,105570.0,105560.0,0.15042669]
[1749438252574,0.7675359,105570.0,105560.0,0.16481007]
[1749438253169,0.7675359,105570.0,105560.0,0.15042669]
[1749438253374,0.7675359,105570.0,105560.0,0.1648101]
[1749438254077,0.4067359,105570.0,105560.0,0.1648101]
[1749438254278,1.1283359,105570.0,105560.0,0.1648101]
[1749438254969,1.1283359,105570.0,105560.0,0.16509139]
[1749438255174,1.1283359,105570.0,105560.0,0.16509254]
[1749438255374,1.1283359,105570.0,105560.0,0.17619137]
[1749438255877,1.1283359,105570.0,105560.0,0.16509254]
[1749438256076,1.1283359,105570.0,105560.0,0.14609137]
[1749438256576,1.1283359,105570.0,105560.0,0.14609573]
[1749438256778,1.1283359,105570.0,105560.0,0.1349969]
[1749438256973,1.1283359,105570.0,105560.0,0.14609575]
[1749438257175,1.1283359,105570.0,105560.0,0.1349969]
[1749438257378,1.1283359,105570.0,105560.0,0.13142554]
[1749438257580,1.1283359,105570.0,105560.0,0.14609573]
[1749438258079,1.1283359,105570.0,105560.0,0.14609578]
[1749438258380,1.1283359,105570.0,105560.0,0.12032669]
[1749438258574,1.1283359,105570.0,105560.0,0.14608455]
[1749438258774,0.4067359,105570.0,105560.0,0.13142558]
[1749438259075,1.1283359,105570.0,105560.0,0.14608455]
[1749438259280,1.1283359,105570.0,105560.0,0.13142558]
[1749438259483,1.1283359,105570.0,105560.0,0.14608455]
[1749438259786,1.1283359,105570.0,105560.0,0.15014115]
[1749438260084,1.1283359,105570.0,105560.0,0.13904226]
[1749438260275,1.1283359,105570.0,105560.0,0.15017695]
[1749438260476,1.1283359,105570.0,105560.0,0.13548218]
[1749438260780,1.1283359,105570.0,105560.0,0.15017695]
[1749438260981,1.1283359,105570.0,105560.0,0.13548218]
[1749438261182,1.1283359,105570.0,105560.0,0.15017695]
[1749438261476,1.1283359,105570.0,105560.0,0.16997526]
[1749438261680,1.1283359,105570.0,105560.0,0.37044765]
[1749438261681,1.0476261,105570.0,105560.0,0.37044765]
[1749438261871,1.5961159,105570.0,105560.0,0.43094395]
[1749438262189,1.5961159,105570.0,105560.0,0.42070572]
[1749438262374,1.0654359,105570.0,105560.0,0.43180322]
[1749438262578,1.5961159,105570.0,105560.0,0.50294823]
[1749438262779,1.5961159,105570.0,105560.0,0.19888144]
[1749438262978,1.5961159,105570.0,105560.0,0.24312197]
[1749438263179,1.5961159,105570.0,105560.0,0.22842874]
[1749438263380,1.5961159,105570.0,105560.0,0.24312191]
[1749438263582,1.59595385,105570.0,105560.0,0.24312191]
[1749438263777,1.59595385,105570.0,105560.0,0.24312182]
[1749438263977,1.59595385,105570.0,105560.0,0.23202376]
[1749438264184,1.59595385,105570.0,105560.0,0.22842865]
[1749438264385,1.59595385,105570.0,105560.0,0.24312182]
[1749438264685,1.59595385,105570.0,105560.0,0.24312331]
[1749438265180,1.5590054,105570.0,105560.0,0.24312331]
[1749438265374,1.59595564,105570.0,105560.0,0.20248739]
[1749438265579,1.71332544,105570.0,105560.0,0.13549115]
[1749438265886,1.69135564,105570.0,105560.0,0.04629684]
[1749438266080,1.69135564,105570.0,105560.0,0.03164588]
[1749438266281,1.69135564,105570.0,105560.0,0.04274468]
[1749438266586,1.69135564,105570.0,105560.0,0.05739579]
[1749438266982,1.69135564,105570.0,105560.0,0.06145239]
[1749438267284,1.69135564,105570.0,105560.0,0.05035359]
[1749438267591,1.69135564,105570.0,105560.0,0.06145198]
[1749438267886,1.69135564,105570.0,105560.0,0.06145242]
[1749438268182,1.69135564,105570.0,105560.0,0.05035362]
[1749438268483,1.69135564,105570.0,105560.0,0.01640128]
[1749438268685,1.69135564,105570.0,105560.0,0.03105242]
[1749438269087,1.80872544,105570.0,105560.0,0.11974267]
[1749438269388,1.69135564,105570.0,105560.0,0.10869099]
[1749438269587,1.69135564,105570.0,105560.0,0.11979088]
[1749438269795,1.69135564,105570.0,105560.0,0.10869182]
[1749438269990,1.80872544,105570.0,105560.0,0.10509183]
[1749438270191,1.80872544,105570.0,105560.0,0.11968668]
[1749438270692,1.80872544,105570.0,105560.0,0.10498792]
[1749438270894,1.80872544,105570.0,105560.0,0.09388845]
[1749438271087,1.80872544,105570.0,105560.0,0.11969255]
[1749438271486,1.80872544,105570.0,105560.0,0.10859308]
[1749438271686,1.80872544,105570.0,105560.0,0.0310023]
[1749438272184,1.80872544,105570.0,105560.0,0.11969256]
[1749438272387,1.80872544,105570.0,105560.0,0.01629768]
[1749438272985,1.80872544,105570.0,105560.0,0.029698]
[1749438273189,1.80893102,105570.0,105560.0,0.04439762]
[1749438274200,1.80893102,105570.0,105560.0,0.029698]
[1749438274391,1.80893102,105570.0,105560.0,0.01629768]
[1749438274586,1.80893102,105570.0,105560.0,0.0162977]
[1749438274891,1.80893102,105570.0,105560.0,0.02969983]
[1749438275097,1.80893102,105570.0,105560.0,0.04448999]
[1749438275495,0.94790584,105570.0,105560.0,0.04448999]
[1749438275694,1.11778584,105570.0,105560.0,0.31635798]
[1749438275905,0.7200356,105570.0,105560.0,0.43458609]
[1749438276106,0.7200356,105570.0,105560.0,0.44946082]
[1749438276407,0.7200356,105570.0,105560.0,0.46425676]
[1749438276603,0.2889156,105570.0,105560.0,0.56767251]
[1749438276807,1.0808356,105570.0,105560.0,0.58246904]
[1749438277008,1.0808356,105570.0,105560.0,0.56767268]
[1749438277208,1.0808356,105570.0,105560.0,0.58246905]
[1749438277397,1.0808356,105570.0,105560.0,0.43457708]
[1749438278408,1.0808356,105570.0,105560.0,0.40868343]
[1749438278409,1.19830819,105570.0,105560.0,0.40868343]
[1749438278614,1.19830819,105570.0,105560.0,0.43457217]
[1749438279504,1.19830819,105570.0,105560.0,0.40868343]
[1749438279707,1.19830819,105570.0,105560.0,0.42336372]
[1749438279916,1.19830819,105570.0,105560.0,0.40868343]
[1749438280204,1.19830819,105570.0,105560.0,0.434461]
[1749438280803,1.19830819,105570.0,105560.0,0.2450875]
[1749438281000,1.19830819,105570.0,105560.0,0.4344611]
[1749438281407,1.19830819,105570.0,105560.0,0.40868353]
[1749438281603,1.19830819,105570.0,105560.0,0.42334931]
[1749438282106,1.19830819,105570.0,105560.0,0.43444659]
[1749438283111,1.19830819,105570.0,105560.0,0.41978081]
[1749438283301,1.19830819,105570.0,105560.0,0.43444659]
[1749438283505,1.19830819,105570.0,105560.0,0.41978081]
[1749438283907,1.19830819,105570.0,105560.0,0.43444659]
[1749438284609,1.19830819,105570.0,105560.0,0.4344194]
[1749438285113,1.19830819,105570.0,105560.0,0.4723094]
[1749438285309,1.19830819,105570.0,105560.0,0.46121212]
[1749438285617,1.19830819,105570.0,105560.0,0.4723094]
[1749438286509,1.19830819,105570.0,105560.0,0.35409753]
[1749438286708,1.19830819,105570.0,105560.0,0.33945908]
[1749438286913,1.19830819,105570.0,105560.0,0.35409753]
[1749438287109,1.19830819,105570.0,105560.0,0.34300025]
[1749438287314,1.19830819,105570.0,105560.0,0.35409753]
[1749438288115,1.19830819,105570.0,105560.0,0.34300025]
[1749438288310,1.19830819,105570.0,105560.0,0.33945908]
[1749438288814,1.19830819,105570.0,105560.0,0.35409684]
[1749438289014,1.19830819,105570.0,105560.0,0.34299956]
[1749438289214,1.19830819,105570.0,105560.0,0.33945908]
[1749438289414,1.19830819,105570.0,105560.0,0.35409711]
[1749438289713,1.19830819,105570.0,105560.0,0.35408873]
[1749438289910,1.19830819,105570.0,105560.0,0.37140216]
[1749438290114,1.19830819,105570.0,105560.0,0.38249944]
[1749438290517,1.19830819,105570.0,105560.0,0.36786908]
[1749438290721,1.19830819,105570.0,105560.0,0.37140216]
[1749438291010,1.19830819,105570.0,105560.0,0.38249944]
[1749438291509,1.19830819,105570.0,105560.0,0.37140216]
[1749438291703,1.19830819,105570.0,105560.0,0.37140157]
[1749438291906,1.19830819,105570.0,105560.0,0.47498353]
[1749438292106,1.19830819,105570.0,105560.0,0.5007105]
[1749438292306,1.19830819,105570.0,105560.0,0.48608073]
[1749438292517,1.19830819,105570.0,105560.0,0.5007105]
[1749438293208,1.19830819,105570.0,105560.0,0.50071109]
[1749438293408,1.19830819,105570.0,105560.0,0.48608073]
[1749438293611,1.19830819,105570.0,105560.0,0.50071109]
[1749438293804,1.19830819,105570.0,105560.0,0.47498353]
[1749438294010,1.19830819,105570.0,105560.0,0.48608073]
[1749438294210,1.19830819,105570.0,105560.0,0.50071109]
[1749438294411,1.19830819,105570.0,105560.0,0.48961389]
[1749438294614,1.19830819,105570.0,105560.0,0.38249936]
[1749438294819,1.19830819,105570.0,105560.0,0.38247762]
[1749438295211,1.19830819,105570.0,105560.0,0.38247598]
[1749438296921,1.19830819,105570.0,105560.0,0.37137895]
[1749438297115,1.19830819,105570.0,105560.0,0.38247615]
[1749438297316,1.19830819,105570.0,105560.0,0.37137895]
[1749438297517,0.83750819,105570.0,105560.0,0.50068785]
[1749438297709,1.19830819,105570.0,105560.0,0.38247612]
[1749438297913,1.19830819,105570.0,105560.0,0.50068785]
[1749438298121,1.19830819,105570.0,105560.0,0.38247614]
[1749438298414,1.19830819,105570.0,105560.0,0.38247771]
[1749438298624,1.19830819,105570.0,105560.0,0.38247793]
[1749438298817,1.19830819,105570.0,105560.0,0.37138058]
[1749438299021,1.19830819,105570.0,105560.0,0.38247793]
[1749438299222,1.19830819,105570.0,105560.0,0.36786915]
[1749438299425,1.19830819,105570.0,105560.0,0.37842133]
[1749438300224,1.19830819,105570.0,105560.0,0.36733538]
[1749438300421,1.19830819,105570.0,105560.0,0.37824004]
[1749438300621,1.19830819,105570.0,105560.0,0.36733538]
[1749438300819,1.19830819,105570.0,105560.0,0.48554711]
[1749438301020,0.83750819,105570.0,105560.0,0.49645121]
[1749438301224,1.19825843,105570.0,105560.0,0.49645121]
[1749438301815,1.19825843,105570.0,105560.0,0.47092693]
[1749438302020,1.19825843,105570.0,105560.0,0.48556093]
[1749438302523,1.19825843,105570.0,105560.0,0.48587716]
[1749438302722,1.19825843,105570.0,105560.0,0.50051116]
[1749438303427,1.19825843,105570.0,105560.0,0.49645456]
[1749438303622,1.19825843,105570.0,105560.0,0.48182152]
[1749438303926,1.19825843,105570.0,105560.0,0.49645691]
[1749438304113,1.19825843,105570.0,105560.0,0.47092693]
[1749438304317,1.19825843,105570.0,105560.0,0.49645691]
[1749438304521,1.19825843,105570.0,105560.0,0.47092693]
[1749438304817,1.19825843,105570.0,105560.0,0.49645691]
[1749438305320,1.19825843,105570.0,105560.0,0.4818437]
[1749438305519,1.19825843,105570.0,105560.0,0.48559929]
[1749438305716,1.23502216,105570.0,105560.0,0.49664017]
[1749438305926,1.30012216,105570.0,105560.0,0.48572346]
[1749438306226,1.33282216,105570.0,105560.0,0.47092693]
[1749438306434,1.33282216,105570.0,105560.0,0.48184373]
[1749438306633,1.33282216,105570.0,105560.0,0.49664028]
[1749438307123,1.33282216,105570.0,105560.0,0.49664001]
[1749438307320,1.33282216,105570.0,105560.0,0.48572348]
[1749438307521,1.33282216,105570.0,105560.0,0.49663992]
[1749438307727,1.29605843,105570.0,105560.0,0.37842819]
[1749438308025,1.29605843,105570.0,105560.0,0.3636317]
[1749438308328,1.29605843,105570.0,105560.0,0.37842816]
[1749438308527,1.29605843,105570.0,105560.0,0.37842822]
[1749438308729,1.29605843,105570.0,105560.0,0.34652822]
[1749438308930,1.29605843,105570.0,105560.0,0.3465282]
[1749438309129,1.29605843,105570.0,105560.0,0.3317317]
[1749438309328,1.29605843,105570.0,105560.0,0.34652825]
[1749438309531,1.41348126,105570.0,105560.0,0.09315397]
[1749438309730,1.43066337,105570.0,105560.0,0.35940894]
[1749438309927,1.46742204,105570.0,105560.0,0.21151734]
[1749438310129,1.46742204,105570.0,105560.0,0.20060201]
[1749438310329,1.46742204,105570.0,105560.0,0.15617464]
[1749438310535,1.46742204,105570.0,105560.0,0.16708922]
[1749438310732,1.58484487,105570.0,105560.0,0.18188799]
[1749438310927,1.46742204,105570.0,105560.0,0.18151083]
[1749438311127,1.46742204,105570.0,105560.0,0.17059586]
[1749438311324,1.46742204,105570.0,105560.0,0.09277762]
[1749438311532,1.46742204,105570.0,105560.0,0.07835693]
[1749438311739,1.46742204,105570.0,105560.0,0.08184216]
[1749438312535,1.46742204,105570.0,105560.0,0.07835694]
[1749438312735,1.46742204,105570.0,105560.0,0.10617213]
[1749438313324,1.467527,105570.0,105560.0,0.08085623]
[1749438313636,1.467527,105570.0,105560.0,0.10617198]
[1749438313830,1.467527,105570.0,105560.0,0.08085608]
[1749438314130,1.467527,105570.0,105560.0,0.09275729]
[1749438314337,1.467527,105570.0,105560.0,0.10617158]
[1749438314522,1.467527,105570.0,105560.0,0.09525628]
[1749438314728,1.828327,105570.0,105560.0,0.10617153]
[1749438315027,1.828327,105570.0,105560.0,0.10617148]
[1749438315230,1.828327,105570.0,105560.0,0.0929656]
[1749438315435,1.828327,105570.0,105560.0,0.09543226]
[1749438315636,1.828327,105570.0,105560.0,0.09180374]
[1749438315930,1.828327,105570.0,105560.0,0.08085585]
[1749438316136,1.828327,105570.0,105560.0,0.10637961]
[1749438316534,1.828327,105570.0,105560.0,0.09543197]
[1749438316734,1.828327,105570.0,105560.0,0.10633133]
[1749438316937,1.828327,105570.0,105560.0,0.09539698]
[1749438317130,1.828327,105570.0,105560.0,0.08200545]
[1749438317330,1.828327,105570.0,105560.0,0.07837595]
[1749438317635,1.828327,105570.0,105560.0,0.0674416]
[1749438317837,1.828327,105570.0,105560.0,0.10633139]
[1749438318925,1.828327,105570.0,105560.0,0.10636039]
[1749438319135,1.828327,105570.0,105560.0,0.0929398]
[1749438319433,1.828327,105570.0,105560.0,0.0674416]
[1749438319638,1.828327,105570.0,105560.0,0.1063553]
[1749438319826,1.828327,105570.0,105560.0,0.10634838]
[1749438320026,1.828327,105570.0,105560.0,0.09179336]
[1749438320230,1.828327,105570.0,105560.0,0.10636143]
[1749438320435,1.828127,105570.0,105560.0,0.09177859]
[1749438320631,1.27973169,105570.0,105560.0,0.08201601]
[1749438320834,1.62866958,105570.0,105560.0,0.09699694]
[1749438321138,1.62866958,105570.0,105560.0,0.15999678]
[1749438321535,1.65876958,105570.0,105560.0,0.15999678]
[1749438321836,1.65876958,105570.0,105560.0,0.15594018]
[1749438322139,1.65876958,105570.0,105560.0,0.14501591]
[1749438322332,1.65876958,105570.0,105560.0,0.14501682]
[1749438322534,1.65876958,105570.0,105560.0,0.14136633]
[1749438322737,1.65876958,105570.0,105560.0,0.1304416]
[1749438322940,1.65876958,105570.0,105560.0,0.15594155]
[1749438323337,1.77624489,105570.0,105560.0,0.09294155]
[1749438323631,1.65876958,105570.0,105560.0,0.09294017]
[1749438324139,1.65876958,105570.0,105560.0,0.09284562]
[1749438324437,1.65876958,105570.0,105560.0,0.07836508]
[1749438324637,1.65876958,105570.0,105560.0,0.08192202]
[1749438324838,1.65876958,105570.0,105560.0,0.0928455]
[1749438325835,1.65876958,105570.0,105560.0,0.08191826]
[1749438326034,1.65876958,105570.0,105560.0,0.07835056]
[1749438326235,1.65876958,105570.0,105560.0,0.08191826]
[1749438326440,1.65876958,105570.0,105560.0,0.09282722]
[1749438326635,1.65876958,105570.0,105560.0,0.0674416]
[1749438326835,1.65876958,105570.0,105560.0,0.09282617]
[1749438327038,1.65876958,105570.0,105560.0,0.09282611]
[1749438327238,1.65876958,105570.0,105560.0,0.09282578]
[1749438327633,1.65876958,105570.0,105560.0,0.09282536]
[1749438327943,1.65876958,105570.0,105560.0,0.07834908]
[1749438328134,1.65876958,105570.0,105560.0,0.09282536]
[1749438328335,1.65876958,105570.0,105560.0,0.08191788]
[1749438328538,1.65876958,105570.0,105560.0,0.09282536]
[1749438328937,1.77624489,105570.0,105560.0,0.09282536]
[1749438329132,1.77624489,105570.0,105560.0,0.08191788]
[1749438329331,1.77624489,105570.0,105560.0,0.09281263]
[1749438329843,1.77624489,105570.0,105560.0,0.092813]
[1749438330232,1.24576489,105570.0,105560.0,0.092813]